fUST/lending_fUST_20240813
["ID","MTS","AMOUNT","RATE_DAILY","PERIOD"]
[334735861,1723519852264,-500.0,0.0001452,2]
[334735862,1723519852273,-151.0,0.0001452,2]
[334735863,1723519852283,-1053.34,0.0001452,2]
[334735864,1723519852292,-639.24,0.0001452,2]
[334735865,1723519852301,-500.0,0.0001452,2]
[334735866,1723519852310,-151.0,0.0001452,2]
[334735867,1723519852321,-549.09,0.0001452,2]
[334735868,1723519852330,-3024.6,0.0001452,2]
[334735869,1723519852339,-939.93,0.0001452,2]
[334735870,1723519852348,-507.11683935,0.0001452,2]
[334735871,1723519852357,-500.0,0.0001452,2]
[334735872,1723519852367,-508.35504889,0.0001452,2]
[334735873,1723519852376,-500.0,0.0001452,2]
[334735874,1723519852386,-306.385423,0.0001452,2]
[334735875,1723519852395,-500.0,0.0001452,2]
[334735876,1723519852404,-500.0,0.0001452,2]
[334735877,1723519852413,-306.385423,0.0001452,2]
[334735878,1723519852422,-151.0,0.0001452,2]
[334735879,1723519852431,-1145.21,0.0001452,2]
[334735880,1723519852440,-151.0,0.0001452,2]
[334735881,1723519852450,-500.0,0.0001452,2]
[334735882,1723519852459,-699.0,0.0001452,2]
[334735883,1723519852468,-393.54329013,0.0001452,2]
[334735884,1723519852477,-696.73,0.0001452,2]
[334735885,1723519852486,-1395.63,0.0001452,2]
[334735886,1723519852496,-1102.31,0.0001452,2]
[334735887,1723519852504,-500.0,0.0001452,2]
[334735888,1723519852513,-666.76,0.0001452,2]
[334735889,1723519852523,-1039.17,0.0001452,2]
[334735890,1723519852533,-500.0,0.0001452,2]
[334735891,1723519852547,-616.08,0.0001452,2]
[334735892,1723519852557,-314.449792,0.0001452,2]
[334735893,1723519852566,-680.47,0.0001452,2]
[334735894,1723519852576,-500.0,0.0001452,2]
[334735895,1723519852586,-314.449792,0.0001452,2]
[334735896,1723519852596,-151.0,0.0001452,2]
[334735897,1723519852605,-500.0,0.0001452,2]
[334735898,1723519852617,-500.0,0.0001452,2]
[334735899,1723519852628,-151.0,0.0001452,2]
[334735900,1723519852638,-1297.63,0.0001452,2]
[334735901,1723519852647,-1039.14,0.0001452,2]
[334735902,1723519852656,-500.0,0.0001452,2]
[334735903,1723519852665,-500.0,0.0001452,2]
[334735904,1723519852675,-594.76,0.0001452,2]
[334735905,1723519852684,-500.0,0.0001452,2]
[334735906,1723519852694,-4482.49,0.0001452,2]
[334735907,1723519852705,-500.0,0.0001452,2]
[334735908,1723519852715,-1221.33,0.0001452,2]
[334735909,1723519852726,-500.0,0.0001452,2]
[334735910,1723519852736,-500.0,0.0001452,2]
[334735911,1723519852747,-1780.35,0.0001452,2]
[334735912,1723519852757,-712.18,0.0001452,2]
[334735913,1723519852766,-500.0,0.0001452,2]
[334735914,1723519852776,-2736.37,0.0001452,2]
[334735915,1723519852785,-918.18,0.0001452,2]
[334735916,1723519852797,-551.18,0.0001452,2]
[334735917,1723519852806,-500.0,0.0001452,2]
[334735918,1723519852816,-500.0,0.0001452,2]
[334735919,1723519852826,-200.0,0.00014783,2]
[334735920,1723519852836,-500.0,0.00014794,2]
[334735921,1723519852846,-500.0,0.00014794,2]
[334735922,1723519852856,-500.0,0.00014794,2]
[334735923,1723519852866,-250.83968501,0.00014794,2]
[334735924,1723519852876,-1720.67,0.00014794,2]
[334735925,1723519852885,-500.0,0.00014794,2]
[334735926,1723519852896,-513.14,0.00014794,2]
[334735927,1723519852905,-151.0,0.00014794,2]
[334735928,1723519852914,-500.0,0.00014794,2]
[334735929,1723519853039,-500.0,0.00014794,2]
[334735930,1723519853052,-1170.06,0.00014794,2]
[334735931,1723519853063,-500.0,0.00014794,2]
[334735932,1723519853072,-500.0,0.00014794,2]
[334735933,1723519853081,-500.0,0.00014794,2]
[334735934,1723519853091,-500.0,0.00014794,2]
[334735935,1723519853100,-500.0,0.00014794,2]
[334735936,1723519853109,-586.27,0.00014794,2]
[334735937,1723519853119,-500.0,0.00014794,2]
[334735938,1723519853128,-500.0,0.00014794,2]
[334735939,1723519853138,-194.510509,0.00014794,2]
[334735940,1723519853147,-599.42,0.00014794,2]
[334735941,1723519853156,-194.510509,0.00014794,2]
[334735942,1723519853166,-500.0,0.00014794,2]
[334735943,1723519853175,-500.0,0.00014794,2]
[334735944,1723519853184,-523.06,0.00014794,2]
[334735945,1723519853194,-500.0,0.00014794,2]
[334735946,1723519853203,-500.0,0.00014794,2]
[334735947,1723519853212,-500.0,0.00014794,2]
[334735948,1723519853221,-500.0,0.00014794,2]
[334735949,1723519853231,-500.0,0.00014794,2]
[334735950,1723519853239,-500.0,0.00014794,2]
[334735951,1723519853248,-500.0,0.00014794,2]
[334735952,1723519853258,-500.0,0.00014794,2]
[334735953,1723519853267,-500.0,0.00014794,2]
[334735954,1723519853276,-608.67028369,0.00014794,2]
[334735955,1723519853286,-500.0,0.00014794,2]
[334735956,1723519853297,-752.11,0.00014794,2]
[334735957,1723519853306,-500.0,0.00014794,2]
[334735958,1723519853315,-500.0,0.00014794,2]
[334735959,1723519853325,-625.4,0.00014794,2]
[334735960,1723519853334,-500.0,0.00014794,2]
[334735961,1723519853344,-500.0,0.00014794,2]
[334735962,1723519853354,-500.0,0.00014794,2]
[334735963,1723519853362,-500.0,0.00014794,2]
[334735964,1723519853372,-547.48,0.00014794,2]
[334735965,1723519853381,-500.0,0.00014794,2]
[334735966,1723519853392,-500.0,0.00014794,2]
[334735967,1723519853401,-500.0,0.00014794,2]
[334735968,1723519853410,-550.93,0.00014794,2]
[334735969,1723519853420,-1103.37,0.00014794,2]
[334735970,1723519853429,-500.0,0.00014794,2]
[334735971,1723519853438,-4800.36,0.00014794,2]
[334735972,1723519853448,-500.0,0.00014794,2]
[334735973,1723519853457,-687.76,0.00014794,2]
[334735974,1723519853467,-825.24,0.00014794,2]
[334735975,1723519853476,-838.4,0.00014794,2]
[334735976,1723519853485,-500.0,0.00014794,2]
[334735977,1723519853495,-500.0,0.00014794,2]
[334735978,1723519853505,-500.0,0.00014794,2]
[334735979,1723519853514,-806.46,0.00014794,2]
[334735980,1723519853523,-1791.65,0.00014794,2]
[334735981,1723519853535,-500.0,0.00014794,2]
[334735982,1723519853547,-500.0,0.00014794,2]
[334735983,1723519853557,-710.5,0.00014794,2]
[334735984,1723519853567,-801.59,0.00014794,2]
[334735985,1723519853577,-1041.59,0.00014794,2]
[334735986,1723519853591,-576.07,0.00014794,2]
[334735987,1723519853601,-860.96,0.00014794,2]
[334735988,1723519853614,-500.0,0.00014794,2]
[334735989,1723519853625,-5033.32,0.00014794,2]
[334735990,1723519853635,-3240.79,0.00014794,2]
[334735991,1723519853644,-500.0,0.00014794,2]
[334735992,1723519853653,-1202.82,0.00014794,2]
[334735993,1723519853663,-500.0,0.00014794,2]
[334735994,1723519853672,-970.44,0.00014794,2]
[334735995,1723519853681,-500.0,0.00014794,2]
[334735996,1723519853691,-500.0,0.00014794,2]
[334735997,1723519853701,-500.0,0.00014794,2]
[334735998,1723519853710,-983.12,0.00014794,2]
[334735999,1723519853719,-500.0,0.00014794,2]
[334736000,1723519853730,-800.08,0.00014794,2]
[334736001,1723519853739,-500.0,0.00014794,2]
[334736002,1723519853749,-778.68,0.00014794,2]
[334736003,1723519853759,-500.0,0.00014794,2]
[334736004,1723519853770,-500.0,0.00014794,2]
[334736005,1723519853779,-500.0,0.00014794,2]
[334736006,1723519853789,-816.07,0.00014794,2]
[334736007,1723519853799,-500.0,0.00014794,2]
[334736008,1723519853808,-615.46,0.00014794,2]
[334736009,1723519853818,-500.0,0.00014794,2]
[334736010,1723519853827,-773.65,0.00014794,2]
[334736011,1723519853838,-3078.21,0.00014794,2]
[334736012,1723519853848,-1469.42,0.00014794,2]
[334736013,1723519853858,-500.0,0.00014794,2]
[334736014,1723519853868,-500.0,0.00014794,2]
[334736015,1723519853878,-1070.13,0.00014794,2]
[334736016,1723519853887,-500.0,0.00014794,2]
[334736017,1723519853898,-500.0,0.00014794,2]
[334736018,1723519853907,-500.0,0.00014794,2]
[334736019,1723519853917,-510.18680554,0.00014794,2]
[334736020,1723519853927,-1053.34,0.00014794,2]
[334736021,1723519853937,-639.24,0.00014794,2]
[334736022,1723519853947,-500.0,0.00014794,2]
[334736023,1723519853956,-1045.55,0.00014794,2]
[334736024,1723519853966,-549.09,0.00014794,2]
[334736025,1723519853975,-3024.6,0.00014794,2]
[334736026,1723519853985,-939.93,0.00014794,2]
[334736027,1723519853994,-500.0,0.00014794,2]
[334736028,1723519854004,-500.0,0.00014794,2]
[334736029,1723519854014,-500.0,0.00014794,2]
[334736030,1723519854024,-1145.21,0.00014794,2]
[334736031,1723519854033,-500.0,0.00014794,2]
[334736032,1723519854042,-699.0,0.00014794,2]
[334736033,1723519854052,-696.73,0.00014794,2]
[334736034,1723519854062,-1395.63,0.00014794,2]
[334736035,1723519854072,-1102.31,0.00014794,2]
[334736036,1723519854081,-500.0,0.00014794,2]
[334736037,1723519854091,-666.76,0.00014794,2]
[334736038,1723519854101,-1039.17,0.00014794,2]
[334736039,1723519854111,-486.45266825,0.00014794,2]
[334736040,1723519854120,-616.08,0.00014794,2]
[334736041,1723519854129,-680.47,0.00014794,2]
[334736042,1723519854138,-500.0,0.00014794,2]
[334736043,1723519854148,-500.0,0.00014794,2]
[334736044,1723519854158,-500.0,0.00014794,2]
[334736045,1723519854168,-1297.63,0.00014794,2]
[334736046,1723519854177,-1039.14,0.00014794,2]
[334736047,1723519854187,-500.0,0.00014794,2]
[334736048,1723519854196,-594.76,0.00014794,2]
[334736049,1723519854206,-316.166336,0.00014794,2]
[334736050,1723519854215,-500.0,0.00014794,2]
[334736051,1723519854225,-316.166336,0.00014794,2]
[334736052,1723519854234,-500.0,0.00014794,2]
[334736053,1723519854243,-4482.49,0.00014794,2]
[334736054,1723519854252,-1221.33,0.00014794,2]
[334736055,1723519854262,-500.0,0.00014794,2]
[334736056,1723519854272,-500.0,0.00014794,2]
[334736057,1723519854282,-1780.35,0.00014794,2]
[334736058,1723519854293,-712.18,0.00014794,2]
[334736059,1723519854303,-2736.37,0.00014794,2]
[334736060,1723519854313,-918.18,0.00014794,2]
[334736061,1723519854322,-551.18,0.00014794,2]
[334736062,1723519854331,-500.0,0.00014794,2]
[334736063,1723519854341,-500.0,0.00014794,2]
[334736064,1723519854350,-1110.12328868,0.00015,2]
[334736065,1723519854360,-2863.93529142,0.00015,2]
[334736066,1723519854371,-1560.69368956,0.0001501,2]
[334736067,1723519854613,-500.0,0.00013698,2]
[334736068,1723519854624,-173.86,0.00013972,2]
[334736069,1723519854635,-66.14256226,0.0001501,2]
[334736070,1723519854646,-400.0,0.00015042,2]
[334736071,1723519854656,-400.0,0.00015042,2]
[334736072,1723519854665,-400.0,0.00015042,2]
[334736073,1723519854675,-398.05309401,0.00015042,2]
[334736074,1723519854684,-150.0,0.00015067,2]
[334736075,1723519854693,-508.0,0.00015067,2]
[334736076,1723519854703,-1413.0,0.00015067,2]
[334736077,1723519854713,-500.0,0.00015068,2]
[334736078,1723519854722,-500.0,0.00015068,2]
[334736079,1723519854732,-490.94434373,0.00015068,2]
[334736080,1723519854945,36.9136658,9.9e-05,2]
[334736081,1723519854984,236.45969651,9.9e-05,2]
[334736082,1723519862833,834.32224871,9.9e-05,2]
[334736083,1723519867268,273.37336231,9.9e-05,2]
[334736084,1723519878287,223.78071941,9.9e-05,2]
[334736085,1723519883697,273.37336231,9.9e-05,2]
[334736086,1723519886789,510.06692442,9.9e-05,2]
[334736087,1723519899310,273.37336231,9.9e-05,2]
[334736088,1723519916101,273.37336231,9.9e-05,2]
[334736089,1723519931978,273.37336231,9.9e-05,2]
[334736090,1723519948233,273.37336231,9.9e-05,2]
[334736091,1723519961340,154.9231882,9.999e-05,2]
[334736092,1723519963694,155.061211,9.999e-05,2]
[334736093,1723519963779,273.37336231,9.9e-05,2]
[334736094,1723519963892,188.76776838,9.999e-05,2]
[334736095,1723519968845,192.35241877,0.0001,2]
[334736096,1723519971761,155.07202166,9.999e-05,2]
[334736097,1723519972024,3282.16129807,9.9e-05,2]
[334736098,1723519972349,289.49108057,0.0001,2]
[334736099,1723519979968,392.23997277,9.9e-05,2]
[334736100,1723519980150,273.37336231,9.9e-05,2]
[334736101,1723519983275,223.78071941,9.9e-05,2]
[334736102,1723519989973,175.09489674,9.999e-05,2]
[334736103,1723519993235,156.69756504,9.999e-05,2]
[334736104,1723519996882,273.37336231,9.9e-05,2]
[334736105,1723519997625,244.7942,9.999e-05,2]
[334736106,1723519998561,332.25653128,9.999e-05,2]
[334736107,1723520003850,155.16038273,9.999e-05,2]
[334736108,1723520004559,308.05834403,9.999e-05,2]
[334736109,1723520005473,154.79103211,9.999e-05,2]
[334736110,1723520008132,522.96413212,9.999e-05,2]
[334736111,1723520012651,273.37336231,9.9e-05,2]
[334736112,1723520016310,156.04119867,9.999e-05,2]
[334736113,1723520016641,510.06692442,9.9e-05,2]
[334736114,1723520018319,343.93623301,9.999e-05,2]
[334736115,1723520028810,273.37336231,9.9e-05,2]
[334736116,1723520033127,162.26684154,9.999e-05,2]
[334736117,1723520035944,404.08727484,9.999e-05,2]
[334736118,1723520042737,155.15906,9.999e-05,2]
[334736119,1723520044123,473.55309177,9.999e-05,2]
[334736120,1723520044803,273.37336231,9.9e-05,2]
[334736121,1723520049804,284.16424637,9.999e-05,2]
[334736122,1723520060208,273.37336231,9.9e-05,2]
[334736123,1723520064428,738.58105149,9.999e-05,2]
[334736124,1723520065761,160.10925935,9.999e-05,2]
[334736125,1723520066744,536.0286964,9.999e-05,2]
[334736126,1723520068093,240.23809487,9.999e-05,2]
[334736127,1723520073688,196.53869799,9.999e-05,2]
[334736129,1723520076219,273.37336231,9.9e-05,2]
[334736130,1723520077830,155.51870715,9.999e-05,2]
[334736131,1723520091555,332.16747718,9.999e-05,2]
[334736132,1723520091604,273.37336231,9.9e-05,2]
[334736133,1723520093080,301.25996446,9.999e-05,2]
[334736134,1723520093940,494.60608226,9.999e-05,2]
[334736135,1723520094267,223.78071941,9.999e-05,2]
[334736136,1723520100707,510.06692442,9.999e-05,2]
[334736137,1723520108493,273.37336231,9.9e-05,2]
[334736138,1723520109141,524.26718011,9.999e-05,2]
[334736139,1723520124293,223.78071941,9.999e-05,2]
[334736140,1723520125130,273.37336231,9.9e-05,2]
[334736141,1723520140970,273.37336231,9.9e-05,2]
[334736142,1723520152682,329.9129517,9.999e-05,2]
[334736143,1723520157134,273.37336231,9.9e-05,2]
[334736144,1723520172441,273.37336231,9.9e-05,2]
[334736145,1723520175085,543.67907992,9.999e-05,2]
[334736146,1723520176010,254.994722,9.999e-05,2]
[334736147,1723520176670,510.06692442,9.9e-05,2]
[334736148,1723520179632,162.55174301,9.999e-05,2]
[334736149,1723520187785,273.37336231,9.9e-05,2]
[334736150,1723520203920,273.37336231,9.9e-05,2]
[334736154,1723520219687,211.20614954,9.9e-05,2]
[334736155,1723520240294,223.78071941,9.9e-05,2]
[334736156,1723520265416,667.55022197,9.999e-05,2]
[334736158,1723520272669,310.28627443,9.9e-05,2]
[334736159,1723520282049,543.67907992,9.999e-05,2]
[334736162,1723520354493,223.77898215,9.999e-05,2]
[334736165,1723520396053,454.63201523,9.999e-05,2]
[334736171,1723520517143,163.35221619,9.999e-05,2]
[334736172,1723520525568,201.20456961,9.999e-05,2]
[334736173,1723520534693,694.90272385,9.999e-05,2]
[334736176,1723520546890,273.37336231,9.9e-05,2]
[334736177,1723520592135,273.37336231,9.9e-05,2]
[334736178,1723520608262,273.37336231,9.9e-05,2]
[334736180,1723520645709,697.42630498,9.999e-05,2]
[334736183,1723520673250,267.93215934,0.0001,2]
[334736184,1723520683941,155.54473646,9.999e-05,2]
[334736185,1723520688210,329.9129517,9.999e-05,2]
[334736186,1723520699292,306.06463796,9.999e-05,2]
[334736188,1723520704625,154.74467129,9.999e-05,2]
[334736190,1723520710445,324.60775045,9.9e-05,2]
[334736191,1723520712181,154.74467129,9.999e-05,2]
[334736192,1723520712437,154.93106964,9.999e-05,2]
[334736193,1723520715778,303.08955867,9.999e-05,2]
[334736194,1723520718872,221.68106494,9.9e-05,2]
[334736195,1723520722138,154.88961185,9.999e-05,2]
[334736196,1723520722804,264.1022763,9.9e-05,2]
[334736197,1723520724948,664.94744601,9.999e-05,2]
[334736198,1723520726977,268.97563902,9.999e-05,2]
[334736199,1723520729125,249.53341286,9.999e-05,2]
[334736200,1723520731115,301.92146246,9.999e-05,2]
[334736201,1723520731170,636.72640188,9.999e-05,2]
[334736202,1723520733056,2075.52213182,9.999e-05,2]
[334736203,1723520733113,332.25653128,9.999e-05,2]
[334736204,1723520734281,819.80255872,9.999e-05,2]
[334736205,1723520734692,209.42836987,9.999e-05,2]
[334736206,1723520735989,2666.85723642,9.999e-05,2]
[334736207,1723520737702,510.00019594,9.999e-05,2]
[334736208,1723520739705,333.04240939,9.999e-05,2]
[334736209,1723520743831,223.78071941,9.999e-05,2]
[334736210,1723520744175,265.92213797,9.999e-05,2]
[334736211,1723520744539,165.95791155,9.999e-05,2]
[334736212,1723520750185,522.71848665,9.999e-05,2]
[334736213,1723520750430,19361.48979113,9.999e-05,2]
[334736214,1723520765522,172.59481874,9.999e-05,2]
[334736215,1723520773834,223.78071941,9.999e-05,2]
[334736218,1723520798640,155.1392206,9.999e-05,2]
[334736219,1723520809194,156.65473853,9.999e-05,2]
[334736220,1723520817145,182.78999009,9.9e-05,2]
[334736221,1723520829970,166.14305841,9.999e-05,2]
[334736222,1723520834260,332.25653128,9.999e-05,2]
[334736223,1723520845159,636.72640188,9.999e-05,2]
[334736224,1723520846968,273.37336231,9.9e-05,2]
[334736225,1723520851698,211.17249921,9.999e-05,2]
[334736226,1723520862811,273.37336231,9.9e-05,2]
[334736227,1723520878225,273.37336231,9.9e-05,2]
[334736229,1723520894164,273.37336231,9.9e-05,2]
[334736230,1723520910628,273.37336231,9.9e-05,2]
[334736231,1723520923112,332.21200423,9.999e-05,2]
[334736232,1723520925911,273.37336231,9.9e-05,2]
[334736233,1723520941187,273.37336231,9.9e-05,2]
[334736239,1723520955217,-300.0,0.00010644,2]
[334736240,1723520955240,-300.0,0.00010644,2]
[334736241,1723520955267,-24890.0,0.00010645,2]
[334736242,1723520955290,-8445.9565848,0.00010787,2]
[334736243,1723520955312,-3031.37,0.00010959,2]
[334736244,1723520955335,-2526.14,0.00010959,2]
[334736245,1723520955358,-2105.12,0.00010959,2]
[334736246,1723520955379,-1754.26,0.00010959,2]
[334736247,1723520955402,-1461.89,0.00010959,2]
[334736248,1723520955424,-258.2522738,0.00011072,2]
[334736249,1723520955448,-189.424269,0.00011127,2]
[334736250,1723520955471,-420.0,0.00011709,2]
[334736251,1723520955497,-896.31702665,0.00012,2]
[334736252,1723520955523,-331.09766063,0.00012,2]
[334736253,1723520955551,-201.84402284,0.00012119,2]
[334736254,1723520957890,273.37336231,9.9e-05,2]
[334736255,1723520965148,1218.24,0.00010959,2]
[334736256,1723520965177,93.70417654,0.00012,2]
[334736257,1723520965201,215.5073341,0.00012,2]
[334736258,1723520965452,461.43077357,0.00015,4]
[334736260,1723520972918,2309.87236167,0.00012,2]
[334736261,1723520973321,273.37336231,9.9e-05,2]
[334736262,1723520989130,273.37336231,9.9e-05,2]
[334736263,1723521017107,976.49,0.00025,60]
[334736264,1723521021405,348.9184757,0.00015,4]
[334736318,1723521032522,-273.37336231,9.9e-05,2]
[334736320,1723521032534,-21.53663769,9.999e-05,2]
[334736323,1723521032549,-135.16092735,9.999e-05,2]
[334736325,1723521032561,-154.74467129,9.999e-05,2]
[334736327,1723521032571,-1015.2,0.00010959,2]
[334736329,1723521032579,-323.09392156,0.00010959,2]
[334736331,1723521032592,-262.29000004,0.00010959,2]
[334736333,1723521032604,-260.6160784,0.00010959,2]
[334736335,1723521032614,-8.63304725,0.00010959,2]
[334736337,1723521032625,-696.36695275,0.00010959,2]
[334736339,1723521032634,-587.5,0.00010959,2]
[334736341,1723521032643,-385.83012592,0.00010959,2]
[334736343,1723521032654,-103.74987408,0.00010959,2]
[334736345,1723521032663,-300.0,0.00011999,2]
[334736347,1723521032673,-314.37711918,0.00012,2]
[334736349,1723521032686,-917.32076871,0.00012,2]
[334736677,1723521037982,-273.37336231,9.9e-05,2]
[334736679,1723521037992,-777.44663769,0.00012,2]
[334736682,1723521038004,-1407.73549892,0.00012,2]
[334736684,1723521038013,-1070.6419705,0.00012,2]
[334736686,1723521038023,-649.11248572,0.00012,2]
[334736688,1723521038032,-2080.66689031,0.000129,2]
[334736690,1723521038041,-170.14395144,0.00013,2]
[334736691,1723521038051,-23793.32609172,0.00013,2]
[334736692,1723521038060,-420.0,0.00013199,2]
[334736693,1723521038069,-830.64980258,0.00013579,2]
[334736694,1723521038078,-1438.85087097,0.00013598,2]
[334736695,1723521038088,-3818.05848317,0.00013598,2]
[334736696,1723521038097,-830.64980254,0.00013652,2]
[334736697,1723521038108,-106391.171578,0.00013668,2]
[334736698,1723521038117,-18446.83857548,0.00013688,2]
[334736700,1723521038126,-294646.61876323,0.00013688,2]
[334736702,1723521038138,-24526.89597177,0.00013688,2]
[334736704,1723521038147,-158.96708511,0.00013698,2]
[334736706,1723521038157,-500.0,0.00013698,2]
[334736708,1723521038166,-381.11310623,0.00013698,2]
[334736710,1723521038175,-280.79143926,0.00013698,2]
[334736711,1723521038184,-184.58069076,0.00013698,2]
[334736712,1723521038344,-298.87490033,0.00013698,2]
[334736713,1723521038354,-500.0,0.00013698,2]
[334736714,1723521038364,-500.0,0.00013698,2]
[334736715,1723521038373,-224.33015881,0.00013698,2]
[334736716,1723521038383,-500.0,0.00013698,2]
[334736717,1723521038392,-500.0,0.00013698,2]
[334736718,1723521038401,-500.0,0.00013698,2]
[334736719,1723521038410,-500.0,0.00013698,2]
[334736720,1723521038420,-612.8412062,0.00013698,2]
[334736721,1723521038430,-500.0,0.00013698,2]
[334736722,1723521038439,-500.0,0.00013698,2]
[334736723,1723521038448,-500.0,0.00013698,2]
[334736724,1723521038458,-500.0,0.00013698,2]
[334736725,1723521038468,-500.0,0.00013698,2]
[334736726,1723521038478,-500.0,0.00013698,2]
[334736727,1723521038488,-478.98884433,0.00013698,2]
[334736728,1723521038497,-500.0,0.00013698,2]
[334736729,1723521038506,-542.67,0.00013698,2]
[334736730,1723521038516,-500.0,0.00013698,2]
[334736731,1723521038525,-500.0,0.00013698,2]
[334736732,1723521038534,-500.0,0.00013698,2]
[334736733,1723521038544,-500.17502496,0.00013698,2]
[334736734,1723521038553,-500.0,0.00013698,2]
[334736735,1723521038563,-500.0,0.00013698,2]
[334736736,1723521038573,-500.0,0.00013698,2]
[334736737,1723521038582,-500.0,0.00013698,2]
[334736738,1723521038591,-500.0,0.00013698,2]
[334736739,1723521038601,-500.0,0.00013698,2]
[334736740,1723521038610,-617.5,0.00013698,2]
[334736741,1723521038620,-502.07461869,0.00013698,2]
[334736742,1723521038629,-500.0,0.00013698,2]
[334736743,1723521038638,-500.0,0.00013698,2]
[334736744,1723521038647,-500.0,0.00013698,2]
[334736745,1723521038657,-500.0,0.00013698,2]
[334736746,1723521038666,-500.0,0.00013698,2]
[334736747,1723521038675,-500.0,0.00013698,2]
[334736748,1723521038684,-500.0,0.00013698,2]
[334736749,1723521038693,-500.0,0.00013698,2]
[334736750,1723521038703,-500.0,0.00013698,2]
[334736751,1723521038712,-500.0,0.00013698,2]
[334736752,1723521038722,-502.56,0.00013698,2]
[334736753,1723521038731,-500.0,0.00013698,2]
[334736754,1723521038740,-708.42,0.00013698,2]
[334736755,1723521038751,-500.0,0.00013698,2]
[334736756,1723521038760,-500.0,0.00013698,2]
[334736757,1723521038769,-500.0,0.00013698,2]
[334736758,1723521038779,-500.0,0.00013698,2]
[334736759,1723521038788,-500.0,0.00013698,2]
[334736760,1723521038797,-522.01574983,0.00013698,2]
[334736761,1723521038807,-500.0,0.00013698,2]
[334736762,1723521038820,-500.0,0.00013698,2]
[334736763,1723521038835,-212.99103853,0.00013698,2]
[334736764,1723521038844,-500.0,0.00013698,2]
[334736765,1723521038855,-500.0,0.00013698,2]
[334736766,1723521038867,-500.0,0.00013698,2]
[334736767,1723521038876,-500.0,0.00013698,2]
[334736768,1723521038885,-500.0,0.00013698,2]
[334736769,1723521038895,-500.0,0.00013698,2]
[334736770,1723521038905,-500.0,0.00013698,2]
[334736771,1723521038915,-500.0,0.00013698,2]
[334736772,1723521038924,-403.78973464,0.00013698,2]
[334736773,1723521038935,-500.0,0.00013698,2]
[334736774,1723521038944,-500.0,0.00013698,2]
[334736775,1723521038955,-500.0,0.00013698,2]
[334736776,1723521038964,-507.01753029,0.00013698,2]
[334736777,1723521038974,-500.0,0.00013698,2]
[334736778,1723521038984,-500.0,0.00013698,2]
[334736779,1723521038994,-733.63,0.00013698,2]
[334736780,1723521039003,-500.0,0.00013698,2]
[334736781,1723521039014,-500.0,0.00013698,2]
[334736782,1723521039024,-500.0,0.00013698,2]
[334736783,1723521039034,-500.0,0.00013698,2]
[334736784,1723521039044,-598.5,0.00013698,2]
[334736785,1723521039053,-500.0,0.00013698,2]
[334736786,1723521039064,-608.67028369,0.00013698,2]
[334736787,1723521039074,-500.0,0.00013698,2]
[334736788,1723521039083,-500.0,0.00013698,2]
[334736789,1723521039092,-500.0,0.00013698,2]
[334736790,1723521039102,-226.97947662,0.00013698,2]
[334736791,1723521039112,-500.0,0.00013698,2]
[334736792,1723521039122,-500.0,0.00013698,2]
[334736793,1723521039131,-500.0,0.00013698,2]
[334736794,1723521039139,-500.0,0.00013698,2]
[334736795,1723521039150,-207.24713946,0.00013698,2]
[334736796,1723521039160,-500.0,0.00013698,2]
[334736797,1723521039170,-532.08,0.00013698,2]
[334736798,1723521039181,-283.34281327,0.00013698,2]
[334736799,1723521039191,-500.0,0.00013698,2]